bitfinex/quotes_SOLUSD_20250518
["timestamp","ask_amount","ask_price","bid_price","bid_amount"]
[1747608413474,5.91436006,169.08,169.01,5.91680965]
[1747608415078,5.91436006,169.08,169.0,31.91715258]
[1747608417360,30.15410907,169.09,169.0,31.91715258]
[1747608417937,24.22,169.08,169.0,31.91715258]
[1747608418237,24.22,169.08,169.01,1.1]
[1747608418436,24.22,169.08,169.02,5.91645959]
[1747608418760,5.91410907,169.09,169.02,5.91645959]
[1747608418958,24.22,169.08,169.02,5.91645959]
[1747608420660,24.22,169.08,169.01,1.1]
[1747608420661,30.13459884,169.08,169.01,7.01671034]
[1747608422495,30.13459884,169.08,169.01,5.91671034]
[1747608423165,24.22,169.08,169.01,5.91671034]
[1747608423468,30.13438521,169.08,169.01,5.91671034]
[1747608424768,30.13438521,169.08,168.98,27.18319391]
[1747608424948,12.57796069,169.05,168.98,31.91759477]
[1747608425147,12.57796069,169.05,168.98,26.0]
[1747608425547,8.0968,169.07,168.98,26.0]
[1747608425845,12.57796069,169.03,168.96,11.61605644]
[1747608426051,12.57796069,169.02,168.96,11.61605644]
[1747608426253,36.77796069,169.01,168.96,11.61605644]
[1747608426777,5.91750991,168.99,168.96,11.61605644]
[1747608426949,12.57796069,168.98,168.92,5.87998225]
[1747608427156,20.0770706,168.99,168.9,31.92041219]
[1747608427350,7.49910991,168.99,168.9,5.92041219]
[1747608427556,12.57796069,168.98,168.9,5.92041219]
[1747608428165,25.8416,168.99,168.9,20.72206997]
[1747608428875,25.8416,168.99,168.92,20.71986739]
[1747608429259,48.2,169.0,168.92,20.71986739]
[1747608429583,72.4,169.0,168.92,20.71986739]
[1747608431993,24.2,169.0,168.92,20.71986739]
[1747608433262,24.2,169.0,168.93,1.1]
[1747608434811,30.11726315,169.0,168.94,5.91926127]
[1747608435379,30.11726315,169.0,168.93,1.1]
[1747608435580,42.69522384,169.0,168.91,26.0]
[1747608435892,12.57796069,168.99,168.9,5.92066311]
[1747608436091,12.57796069,168.98,168.9,5.92066311]
[1747608436674,5.91726315,169.0,168.9,5.92066311]
[1747608436875,24.18,168.99,168.93,26.0]
[1747608437090,48.2,169.02,168.93,26.0]
[1747608437282,24.18,169.02,168.97,26.0]
[1747608437478,24.18,169.02,168.98,18.64964886]
[1747608437678,24.18,169.02,168.97,1.1832137]
[1747608437880,24.18,169.02,168.94,26.0]
[1747608438181,24.18,169.02,168.96,1.1]
[1747608438813,24.18,169.02,168.97,5.91821033]
[1747608439306,18.49397492,169.04,168.97,5.91821033]
[1747608439512,24.18,169.03,168.97,5.91821033]
[1747608440780,30.09617146,169.03,168.97,5.91821033]
[1747608441006,30.09617146,169.03,168.96,7.01855173]
[1747608442017,24.18,169.03,168.96,7.01855173]
[1747608442303,6.5891,169.09,168.99,26.0]
[1747608442514,24.16,169.07,169.01,18.64964886]
[1747608442725,24.2,169.1,169.04,26.0]
[1747608442887,1.5563,169.12,169.04,26.0]
[1747608443219,24.16,169.12,169.04,26.0]
[1747608443784,24.16,169.12,169.05,5.91540964]
[1747608443984,6.6014,169.14,169.05,7.09820591]
[1747608444286,24.16,169.13,169.06,18.64964886]
[1747608444486,1.5563,169.16,169.06,18.64964886]
[1747608444699,24.16,169.15,169.09,26.0]
[1747608445006,1.5563,169.16,169.09,26.0]
[1747608445186,24.16,169.16,169.09,26.0]
[1747608445781,12.55548138,169.18,169.1,5.91366055]
[1747608445984,24.14,169.17,169.1,5.91366055]
[1747608447290,30.05127546,169.17,169.1,5.91366055]
[1747608447607,30.05127546,169.17,169.09,26.0]
[1747608447813,50.16909322,169.17,169.09,26.0]
[1747608448385,64.94712715,169.17,169.09,26.0]
[1747608448782,30.05127546,169.17,169.09,26.0]
[1747608449005,30.05127546,169.17,169.09,31.91390856]
[1747608449183,30.05127546,169.17,169.1,0.42050001]
[1747608449386,24.12,169.16,169.1,0.42050001]
[1747608450014,5.91127546,169.17,169.1,0.42050001]
[1747608450199,5.9119125,169.15,169.1,0.42050001]
[1747608454023,30.03164551,169.16,169.1,0.42050001]
[1747608457504,50.14946327,169.16,169.1,0.42050001]
[1747608457816,64.92837081,169.16,169.1,0.42050001]
[1747608458505,5.91016548,169.2,169.11,5.91331086]
[1747608458704,24.08,169.19,169.11,5.91331086]
[1747608459623,5.91086416,169.18,169.11,5.91331086]
[1747608459825,5.91086416,169.18,169.1,0.42050001]
[1747608460004,20.11781776,169.17,169.1,0.42050001]
[1747608460202,24.08,169.16,169.1,6.33408198]
[1747608460399,24.08,169.19,169.1,6.33408198]
[1747608460615,24.08,169.18,169.1,21.11823336]
[1747608461713,29.99093348,169.18,169.1,21.11823336]
[1747608463803,24.08,169.18,169.1,21.11823336]
[1747608464227,24.08,169.19,169.1,21.11823336]
[1747608464431,24.06,169.18,169.1,21.11823336]
[1747608465018,24.06,169.18,169.1,6.33408198]
[1747608465613,5.91121357,169.17,169.1,6.33408198]
[1747608466029,29.97092978,169.18,169.1,6.33408198]
[1747608468143,24.06,169.18,169.1,6.33408198]
[1747608468312,24.06,169.18,169.1,21.11823336]
[1747608468644,42.54363227,169.18,169.1,0.42050001]
[1747608468848,12.57262796,169.17,169.1,0.42050001]
[1747608469333,12.57262796,169.17,169.08,12.31222597]
[1747608469842,12.57262796,169.16,169.08,12.31222597]
[1747608470039,5.9119125,169.15,169.08,12.31222597]
[1747608470241,12.57262796,169.14,169.08,12.31222597]
[1747608470541,14.23172796,169.14,169.08,12.31222597]
[1747608470729,12.57262796,169.13,169.05,1.14769203]
[1747608471037,12.57262796,169.11,169.03,5.91597904]
[1747608471345,1.6591,169.14,169.03,5.91597904]
[1747608471542,24.04,169.13,169.03,8.22359436]
[1747608471921,24.04,169.13,169.04,19.77412888]
[1747608472140,24.04,169.13,169.05,20.70393374]
[1747608472331,24.04,169.13,169.05,21.82834724]
[1747608472543,24.04,169.13,169.06,1.12434699]
[1747608473447,24.02,169.12,169.06,1.12434699]
[1747608474244,24.02,169.12,169.07,5.91470988]
[1747608474453,24.02,169.12,169.06,1.12434699]
[1747608474454,5.91226203,169.14,169.06,7.03931041]
[1747608474625,24.02,169.13,169.06,7.03931041]
[1747608476063,29.99160025,169.16,169.06,21.82695976]
[1747608476350,24.02,169.13,169.07,1.12428049]
[1747608476548,24.02,169.13,169.08,5.91436006]
[1747608476735,29.99160025,169.16,169.08,5.91436006]
[1747608476736,24.02,169.14,169.08,5.91436006]
[1747608478244,29.93229735,169.14,169.08,5.91436006]
[1747608478746,29.93229735,169.14,169.07,7.03895165]
[1747608480067,24.02,169.14,169.07,7.03895165]
[1747608480230,24.02,169.14,169.08,1.06840002]
[1747608480432,5.91132522,169.17,169.08,1.06840002]
[1747608480739,24.0,169.16,169.08,1.06840002]
[1747608483153,24.0,169.16,169.09,5.91401029]
[1747608483835,23.98,169.16,169.09,5.91401029]
[1747608484538,23.98,169.16,169.08,6.98272192]
[1747608485139,29.8915734,169.16,169.08,6.98272192]
[1747608486571,23.98,169.16,169.08,6.98272192]
[1747608486769,5.91124512,169.17,169.08,6.98272192]
[1747608486942,7.49692316,169.18,169.08,21.76862208]
[1747608487142,25.566,169.18,169.1,5.91366055]
[1747608488265,23.066,169.18,169.1,5.91366055]
[1747608489270,5.90987952,169.21,169.11,45.83197576]
[1747608489569,23.96,169.2,169.11,45.83197576]
[1747608490368,23.96,169.2,169.12,20.69536423]
[1747608490861,5.90920363,169.23,169.12,20.69536423]
[1747608491058,23.96,169.22,169.12,20.69536423]
[1747608491254,23.96,169.22,169.13,0.6]
[1747608491462,23.96,169.21,169.13,0.6]
[1747608492048,23.67362093,169.21,169.13,0.6]
[1747608492984,5.91016548,169.2,169.13,6.51232373]
[1747608493487,29.58350347,169.21,169.13,6.51232373]
[1747608495857,44.35804398,169.21,169.13,0.6]
[1747608496184,56.93067194,169.21,169.12,26.0]
[1747608496382,12.57262796,169.19,169.1,26.0]
[1747608496862,1.5806,169.18,169.08,6.98268192]
[1747608497269,14.15322796,169.18,169.08,6.98268192]
[1747608497780,5.91121357,169.17,169.09,0.6]
[1747608499076,23.92,169.16,169.09,6.5139489]
[1747608500377,55.6914856,169.18,169.09,6.5139489]
[1747608500787,23.9,169.17,169.09,6.5139489]
[1747608501456,23.9,169.17,169.09,21.29897462]
[1747608502791,29.81127879,169.17,169.09,6.5139489]
[1747608503992,42.38390675,169.17,169.09,0.6]
[1747608504301,36.05347879,169.17,169.09,0.6]
[1747608504785,48.62610675,169.17,169.09,0.6]
[1747608505266,36.05347879,169.17,169.09,0.6]
[1747608505686,23.88,169.16,169.09,6.51398589]
[1747608505993,23.88,169.16,169.08,1.06840002]
[1747608505994,23.88,169.16,169.08,6.98267917]
[1747608507594,5.9119125,169.15,169.09,0.5]
[1747608508482,12.57262796,169.13,169.08,1.06840002]
[1747608508896,14.13572796,169.09,169.08,1.06840002]
[1747608509101,38.01572796,169.09,169.08,1.06840002]
[1747608509607,62.57938711,169.09,169.08,1.06840002]
[1747608509924,62.57938711,169.09,168.99,5.87998225]
[1747608510226,12.57262796,169.02,168.99,5.87998225]
[1747608510382,23.86,169.01,168.99,5.87998225]
[1747608511205,23.86,169.06,168.99,5.87998225]
[1747608511481,23.86,169.06,168.99,5.91739356]
[1747608511717,23.86,169.06,168.98,20.71198509]
[1747608511919,23.86,169.06,168.99,2.80239065]
[1747608512083,23.86,169.06,168.99,28.80239065]
[1747608512482,23.86,169.06,168.99,28.6753201]
[1747608512786,23.86,169.06,168.99,27.0560201]
[1747608513184,23.86,169.06,168.99,28.23913231]
[1747608513395,23.86,169.06,169.0,0.6]
[1747608513686,23.86,169.06,169.0,5.91715976]
[1747608514399,23.86,169.07,169.0,20.71005916]
[1747608515286,23.86,169.07,169.0,5.91715976]
[1747608517707,20.14299666,169.06,168.99,1.0560201]
[1747608517912,23.86,169.07,168.99,1.0560201]
[1747608518206,23.86,169.07,168.99,6.97342439]
[1747608518507,49.96,169.08,168.99,6.97342439]
[1747608518708,23.84,169.07,168.99,6.97342439]
[1747608519099,23.84,169.07,168.99,21.76719916]
[1747608520294,23.96,169.08,169.0,19.83277757]
[1747608520501,23.96,169.08,169.03,44.64964886]
[1747608520805,23.82,169.12,169.04,1.18281806]
[1747608520986,23.82,169.15,169.05,18.64964886]
[1747608521185,23.82,169.15,169.06,26.0]
[1747608521186,23.82,169.14,169.06,26.0]
[1747608521411,23.82,169.14,169.07,18.64964886]
[1747608522184,6.4963,169.17,169.09,18.64964886]
[1747608522388,23.82,169.18,169.09,44.64964886]
[1747608522997,78.11229666,169.21,169.09,44.64964886]
[1747608523214,23.82,169.2,169.12,26.0]
[1747608524199,31.9693,169.21,169.14,5.91226203]
[1747608524200,47.64,169.21,169.14,5.91226203]
[1747608524398,20.14299666,169.24,169.14,5.91226203]
[1747608524399,5.9088141,169.24,169.14,21.87509886]
[1747608524602,12.06556142,169.25,169.15,44.64964886]
[1747608524815,23.8,169.24,169.15,44.64964886]
[1747608525422,23.8,169.24,169.17,18.64964886]
[1747608525621,23.8,169.24,169.15,26.0]
[1747608526420,29.70909958,169.24,169.16,5.91156301]
[1747608526794,29.70909958,169.24,169.15,26.0]
[1747608527824,29.70909958,169.24,169.15,31.91166754]
[1747608528323,214.3836,169.33,169.21,18.64964886]
[1747608528492,23.78,169.29,169.21,26.0]
[1747608529315,29.68703395,169.29,169.22,5.90946696]
[1747608529914,5.90703395,169.29,169.22,5.90946696]
[1747608530099,5.90597684,169.32,169.22,5.90946696]
[1747608530299,5.90597684,169.32,169.23,1.05452247]
[1747608530501,29.68597684,169.32,169.23,2.23594601]
[1747608530826,47.6,169.33,169.24,45.70410902]
[1747608531121,23.82,169.33,169.25,2.23563782]
[1747608531531,23.82,169.33,169.26,6.96240598]
[1747608531833,23.82,169.33,169.27,1.05427327]
[1747608532307,34.43473654,169.35,169.27,2.23551289]
[1747608532628,34.43473654,169.35,169.28,1.05421099]
[1747608533198,34.43473654,169.35,169.28,1.05145139]
[1747608533401,28.52954311,169.35,169.29,1.05138928]
[1747608533599,4.76954311,169.35,169.29,1.05138928]
[1747608533799,4.76954311,169.35,169.28,5.90727556]
[1747608534026,4.76954311,169.35,169.29,1.18102529]
[1747608534223,4.76954311,169.35,169.3,1.611]
[1747608534526,4.76954311,169.35,169.31,27.18085655]
[1747608535319,4.76954311,169.35,169.33,5.90562806]
[1747608535714,4.76954311,169.35,169.34,0.96613034]
[1747608536242,4.76954311,169.35,169.34,0.95240492]
[1747608536926,4.76954311,169.35,169.34,26.95240492]
[1747608537307,4.76954311,169.35,169.34,6.85768423]
[1747608537609,29.70211121,169.44,169.35,26.0]
[1747608537815,29.70180705,169.44,169.36,1.1804943]
[1747608538017,29.70180705,169.44,169.36,0.95632958]
[1747608538228,29.70180705,169.44,169.37,0.95627312]
[1747608538436,29.70180705,169.44,169.36,0.77921243]
[1747608538627,29.70180705,169.44,169.36,1.95999024]
[1747608538818,29.70180705,169.44,169.36,0.69551831]
[1747608539016,29.70180705,169.44,169.35,26.0]
[1747608539215,20.14299666,169.43,169.32,138.4]
[1747608539406,29.70180705,169.44,169.33,27.18080083]
[1747608539603,29.70180705,169.44,169.34,18.64964886]
[1747608540607,29.70180705,169.44,169.35,1.78060751]
[1747608540810,29.70180705,169.44,169.35,0.6]
[1747608542036,64.59928907,169.44,169.35,26.6]
[1747608542240,20.14299666,169.36,169.35,0.6]
[1747608542535,30.3323,169.36,169.25,1.591]
[1747608542733,30.3323,169.36,169.24,26.0]
[1747608542931,30.3323,169.36,169.26,26.0]
[1747608543120,50.47529666,169.36,169.25,0.63424725]
[1747608543319,50.47529666,169.36,169.27,0.63417231]
[1747608543743,5.90527931,169.34,169.27,0.63417231]
[1747608543924,26.04827597,169.34,169.27,0.63417231]
[1747608544239,5.90527931,169.34,169.27,0.63417231]
[1747608545444,6.6323,169.36,169.27,0.63417231]
[1747608545613,23.7,169.35,169.27,0.63417231]
[1747608546013,23.7,169.36,169.28,1.18117877]
[1747608546434,23.7,169.37,169.29,0.63409739]
[1747608547013,43.84299666,169.37,169.29,0.63409739]
[1747608547214,23.7,169.37,169.29,0.63409739]
[1747608547631,23.7,169.37,169.29,6.54110625]
[1747608547828,29.60426211,169.37,169.29,6.54110625]
[1747608548026,29.60430981,169.37,169.3,0.63405994]
[1747608548433,20.14299666,169.36,169.3,0.63405994]
[1747608548735,29.60430981,169.37,169.3,0.63405994]
[1747608549952,23.7,169.36,169.3,6.54063179]
[1747608550933,23.7,169.37,169.3,6.54063179]
[1747608551256,23.7,169.37,169.3,0.63405994]
[1747608551638,43.84299666,169.37,169.3,0.63405994]
[1747608551954,20.14299666,169.35,169.3,0.63405994]
[1747608552247,20.14299666,169.33,169.3,0.63405994]
[1747608552749,20.14299666,169.34,169.3,0.63405994]
[1747608553132,20.14299666,169.31,169.3,0.63405994]
[1747608553555,6.2252,169.32,169.3,0.63405994]
[1747608554260,18.64964886,169.31,169.18,19.59744824]
[1747608554427,6.2252,169.32,169.22,26.0]
[1747608554620,6.2252,169.32,169.24,26.0]
[1747608555160,6.2252,169.32,169.25,5.90841949]
[1747608555528,24.58,169.35,169.25,5.90841949]
[1747608555858,24.74,169.34,169.25,20.67946823]
[1747608556024,24.74,169.34,169.26,0.7]
[1747608556225,6.0868,169.37,169.27,18.64964886]
[1747608556427,30.8068,169.37,169.26,0.7]
[1747608557127,36.71103845,169.37,169.27,5.90772139]
[1747608557854,36.71103845,169.37,169.28,0.47288455]
[1747608558053,11.99103845,169.37,169.28,0.47288455]
[1747608558257,24.64,169.36,169.28,0.47288455]
[1747608558550,30.48377639,169.39,169.28,0.47288455]
[1747608558757,24.58,169.39,169.32,26.0]
[1747608559269,24.6,169.43,169.34,5.90527931]
[1747608559557,50.6451459,169.43,169.34,0.472717]
[1747608560658,20.14299666,169.41,169.34,0.472717]
[1747608561153,45.25750543,169.43,169.34,0.472717]
[1747608561154,20.14299666,169.4,169.34,0.472717]
[1747608561737,20.14299666,169.41,169.34,0.472717]
[1747608562439,89.90715429,169.43,169.34,0.472717]
[1747608562762,20.14299666,169.41,169.34,0.472717]
[1747608562942,20.14299666,169.4,169.34,0.472717]
[1747608563153,5.90353621,169.39,169.34,0.472717]
[1747608564160,42.32437341,169.39,169.34,0.472717]
[1747608564658,7.42253621,169.39,169.34,0.472717]
[1747608566564,42.32437341,169.39,169.34,0.472717]
[1747608567064,24.26,169.38,169.34,0.472717]
[1747608567564,5.90423333,169.37,169.34,0.472717]
[1747608568358,54.10387853,169.39,169.34,0.472717]
[1747608568560,24.18,169.38,169.34,0.472717]
[1747608569140,48.2,169.39,169.34,0.472717]
[1747608569345,72.44,169.39,169.34,0.472717]
[1747608569550,24.24,169.39,169.34,6.37799048]
[1747608571467,24.22,169.4,169.34,6.37799048]
[1747608572366,30.12324356,169.4,169.34,0.472717]
[1747608573274,20.14299666,169.37,169.34,0.472717]
[1747608573656,26.04792727,169.35,169.34,0.472717]
[1747608573972,40.81025381,169.35,169.27,11.48080171]
[1747608574141,20.14299666,169.34,169.27,11.48080171]
[1747608574342,20.14299666,169.32,169.27,11.48080171]
[1747608574567,20.14299666,169.31,169.23,11.78904455]
[1747608574762,44.72299666,169.32,169.23,11.78904455]
[1747608575141,24.58,169.32,169.24,0.7]
[1747608575341,44.72299666,169.32,169.24,0.7]
[1747608575541,5.90632567,169.31,169.24,0.7]
[1747608575972,24.2,169.31,169.25,5.90841949]
[1747608577359,24.2,169.31,169.26,0.41870676]
[1747608577556,24.2,169.31,169.27,5.90772139]
[1747608577750,24.2,169.31,169.26,26.41870676]
[1747608577751,30.10638843,169.31,169.26,26.41870676]
[1747608578181,24.2,169.31,169.26,0.41870676]
[1747608578845,24.12,169.32,169.26,6.32676961]
[1747608579263,24.12,169.32,169.26,0.41870676]
[1747608579463,24.12,169.32,169.26,6.32675286]
[1747608579872,30.02604403,169.32,169.27,0.41868202]
[1747608580254,24.12,169.32,169.27,0.41868202]
[1747608580457,24.58,169.35,169.27,0.41868202]
[1747608580674,24.04,169.34,169.27,0.32753051]
[1747608580854,24.04,169.34,169.28,0.32751116]
[1747608581275,24.58,169.35,169.28,0.32751116]
[1747608581485,24.02,169.34,169.28,0.32751116]
[1747608581853,24.02,169.34,169.29,5.90702345]
[1747608582075,24.02,169.34,169.28,0.32751116]
[1747608582076,29.92529122,169.34,169.28,0.32751116]
[1747608582685,29.92529122,169.34,169.28,6.23484278]
[1747608582862,29.92529122,169.34,169.28,0.32751116]
[1747608583277,29.92529122,169.34,169.28,6.23480927]
[1747608583481,24.02,169.34,169.28,6.23480927]
[1747608586176,24.02,169.34,169.29,0.7]
[1747608588173,29.92540784,169.34,169.29,0.7]
[1747608589014,29.92540784,169.34,169.28,0.32751116]
[1747608589308,44.68860613,169.34,169.28,0.32751116]
[1747608589514,20.14299666,169.29,169.28,0.32751116]
[1747608589807,20.14299666,169.3,169.28,0.32751116]
[1747608589978,20.14299666,169.29,169.28,0.32751116]
[1747608590180,26.05002011,169.29,169.28,0.32751116]
[1747608590487,51.10936897,169.29,169.28,0.32751116]
[1747608590697,18.64964886,169.28,169.19,5.87998225]
[1747608591011,20.14299666,169.22,169.19,5.87998225]
[1747608591612,20.14299666,169.24,169.19,5.87998225]
[1747608591910,20.14299666,169.24,169.17,0.30115237]
[1747608592402,23.72,169.24,169.17,0.30115237]
[1747608593381,23.72,169.24,169.17,6.21234385]
[1747608594183,23.72,169.24,169.17,20.99037778]
[1747608594612,23.72,169.24,169.18,0.6]
[1747608595276,23.72,169.24,169.19,5.9105148]
[1747608596403,23.78,169.27,169.19,20.68680181]
[1747608596609,23.72,169.25,169.19,20.68680181]
[1747608597614,23.78,169.27,169.19,14.77628701]
[1747608597792,23.78,169.27,169.19,15.95800937]
[1747608598308,23.78,169.27,169.18,31.91086416]
[1747608599805,29.6877837,169.27,169.18,31.91086416]
[1747608600217,49.83078036,169.27,169.19,0.6]
[1747608600389,29.6877837,169.27,169.19,0.6]
[1747608601022,23.78,169.27,169.19,21.28677722]
[1747608601186,23.8,169.32,169.23,27.6646]
[1747608601380,23.72,169.3,169.23,1.6646]
[1747608601601,23.72,169.3,169.19,48.95137722]
[1747608601602,43.86299666,169.3,169.19,48.95137722]
[1747608601799,43.86299666,169.3,169.19,33.57509021]
[1747608602311,5.9073724,169.28,169.19,7.57509021]
[1747608602827,20.14299666,169.27,169.19,7.57509021]
[1747608602990,20.14299666,169.27,169.18,6.18755709]
[1747608603623,27.55336906,169.28,169.18,6.18755709]
[1747608603807,23.72,169.29,169.19,1.45850664]
[1747608604120,23.8,169.32,169.2,18.9263426]
[1747608604289,23.72,169.31,169.22,27.6233]
[1747608604694,23.72,169.31,169.23,0.27664469]
[1747608605111,23.8,169.32,169.23,20.1077038]
[1747608605311,184.18,169.34,169.26,26.0]
[1747608605516,207.9,169.34,169.26,26.0]
[1747608606211,207.9,169.34,169.27,5.90772139]
[1747608606514,207.9,169.34,169.26,31.90801065]
[1747608607897,213.80531108,169.34,169.26,31.90801065]
[1747608608218,213.80531108,169.34,169.24,26.0]
[1747608608591,228.56850937,169.34,169.24,31.90871693]
[1747608608794,213.80531108,169.34,169.24,31.90871693]
[1747608609107,23.72,169.33,169.25,1.18132245]
[1747608610007,23.72,169.33,169.26,5.90807042]
[1747608611525,29.62574018,169.33,169.26,5.90807042]
[1747608612024,29.62574018,169.33,169.25,5.90832611]
[1747608613219,20.14299666,169.32,169.23,0.27664469]
[1747608613399,5.90702345,169.29,169.23,0.27664469]
[1747608614309,5.90702345,169.29,169.23,6.18571911]
[1747608614698,23.8,169.3,169.23,6.18571911]
[1747608614897,6.0313,169.31,169.23,6.18571911]
[1747608615119,5.90630014,169.32,169.23,6.18571911]
[1747608615120,23.72,169.3,169.23,6.18571911]
[1747608615425,23.72,169.3,169.23,20.95851353]
[1747608615618,23.72,169.3,169.23,6.18571911]
[1747608616507,29.62673981,169.3,169.23,6.18571911]
[1747608616811,29.62673981,169.3,169.23,0.27664469]
[1747608617329,20.14299666,169.26,169.23,0.27664469]
[1747608617624,20.14299666,169.24,169.23,0.27664469]
[1747608617924,21.68679666,169.24,169.23,0.27664469]
[1747608619923,27.59556527,169.24,169.23,0.27664469]
[1747608623243,5.90876861,169.24,169.23,0.27664469]
[1747608623826,26.05176527,169.24,169.23,0.27664469]
[1747608624544,26.05176527,169.24,169.17,5.6877932]
[1747608624726,26.05176527,169.24,169.12,26.0]
[1747608624727,43.84299666,169.23,169.15,5.91159194]
[1747608624926,20.14299666,169.22,169.13,5.9126116]
[1747608625270,23.7,169.23,169.13,5.9126116]
[1747608625414,48.2,169.24,169.16,26.0]
[1747608625743,71.9,169.24,169.17,5.91121357]
[1747608625937,23.7,169.24,169.17,5.91121357]
[1747608627040,29.60881978,169.24,169.17,5.91121357]
[1747608627830,29.60881978,169.24,169.13,14.781529]
[1747608628030,49.75181644,169.24,169.14,26.0]
[1747608628331,20.14299666,169.23,169.14,5.91226203]
[1747608629444,5.90946696,169.22,169.13,5.9126116]
[1747608630436,23.7,169.24,169.16,26.0]
[1747608630642,29.60885514,169.24,169.16,26.0]
[1747608630842,23.7,169.23,169.16,26.0]
[1747608631342,23.7,169.23,169.17,5.91121357]
[1747608632049,29.60921916,169.23,169.17,5.91121357]
[1747608632349,29.60921916,169.23,169.16,31.91147201]
[1747608632646,29.60921916,169.23,169.14,5.91193819]
[1747608632847,49.75221582,169.23,169.13,6.17336249]
[1747608633535,29.60921916,169.23,169.13,6.17336249]
[1747608634549,48.2,169.24,169.13,6.17336249]
[1747608634853,54.10743729,169.28,169.17,26.0]
[1747608635142,5.9066842,169.3,169.21,26.0]
[1747608635530,5.9066842,169.3,169.21,31.9097736]
[1747608635726,23.68,169.29,169.21,31.9097736]
[1747608637130,23.68,169.29,169.22,1.5583]
[1747608637541,23.68,169.29,169.23,5.90911776]
[1747608637858,5.90560438,169.34,169.23,21.86354756]
[1747608638026,29.58560438,169.34,169.24,44.64964886]
[1747608638345,9.22374854,169.39,169.28,18.64964886]
[1747608638545,23.68,169.36,169.28,18.64964886]
[1747608638954,23.68,169.37,169.28,18.64964886]
[1747608639247,23.68,169.37,169.28,18.91027228]
[1747608639548,5.90360829,169.39,169.3,5.90667454]
[1747608639726,23.68,169.37,169.3,5.90667454]
[1747608640850,5.90360829,169.39,169.3,6.16726717]
[1747608641154,23.68,169.38,169.3,6.16726717]
[1747608641366,5.90360829,169.39,169.31,1.6633]
[1747608641367,23.68,169.39,169.31,1.6633]
[1747608641524,23.68,169.39,169.31,1.92387724]
[1747608642048,23.68,169.39,169.32,0.26056185]
[1747608643652,23.68,169.39,169.33,5.90562806]
[1747608643838,23.7,169.4,169.33,5.90562806]
[1747608644033,47.36,169.4,169.34,0.26053107]
[1747608644235,53.26334321,169.4,169.34,0.26053107]
[1747608645535,73.40633987,169.4,169.34,0.26053107]
[1747608646053,20.14299666,169.37,169.34,0.26053107]
[1747608646966,20.14299666,169.36,169.34,0.26053107]
[1747608647260,20.14299666,169.38,169.34,0.26053107]
[1747608647791,5.90423333,169.37,169.34,0.26053107]
[1747608649658,82.26096596,169.4,169.34,0.26053107]
[1747608649659,5.90353621,169.39,169.34,0.26053107]
[1747608649856,26.04653287,169.39,169.34,0.26053107]
[1747608650052,47.28,169.38,169.34,0.26053107]
[1747608651529,26.04722999,169.37,169.34,0.26053107]
[1747608654559,20.14299666,169.36,169.34,0.26053107]
[1747608655473,12.42133333,169.37,169.34,0.26053107]
[1747608656255,23.62,169.36,169.34,0.26053107]
[1747608656454,5.90493061,169.35,169.34,0.26053107]
[1747608657266,29.52467788,169.36,169.34,0.26053107]
[1747608658259,49.66767454,169.36,169.34,0.26053107]
[1747608659259,73.30767454,169.36,169.34,0.26053107]
[1747608660061,48.2,169.35,169.34,0.26053107]
[1747608660757,71.82,169.35,169.34,0.26053107]
[1747608660952,23.64,169.37,169.34,0.26053107]
[1747608661460,23.64,169.37,169.34,6.16575079]
[1747608661850,23.64,169.37,169.34,0.26053107]
[1747608662563,23.64,169.37,169.34,6.16570377]
[1747608662957,23.62,169.4,169.35,0.26051569]
[1747608663469,23.62,169.4,169.35,6.16513944]
[1747608663653,23.6,169.4,169.35,7.68983944]
[1747608664049,23.64,169.43,169.35,23.63291423]
[1747608664352,23.6,169.46,169.37,18.64964886]
[1747608664559,23.6,169.46,169.38,1.18036594]
[1747608664754,23.64,169.49,169.4,26.0]
[1747608665060,5.90074939,169.47,169.39,5.90353621]
[1747608665273,5.90074939,169.47,169.38,26.0]
[1747608665453,74.24374605,169.47,169.36,6.4237]
[1747608665846,88.99561953,169.47,169.36,6.4237]
[1747608666054,20.14299666,169.45,169.36,6.4237]